[Event "Susha Chess Blitz 2022"]
[Site "Shusha"]
[Date "2022.09.24"]
[Round "4"]
[White "Guseinov, Gadir"]
[Black "Vidit, Santosh Gujrathi"]
[Result "1/2-1/2"]
[ECO "B24"]
[WhiteElo "2661"]
[BlackElo "2710"]
[Annotator "TA"]
[PlyCount "152"]
[EventDate "2022.09.24"]
[EventType "tourn"]
[EventCountry "AZE"]
[SourceTitle "playchess.com"]
[Source "ChessBase"]
[SourceQuality "1"]
[TimeControl "180+2"]

{[%evp 10,152,17,14,10,0,15,0,0,0,7,3,0,-6,28,23,16,17,20,14,19,16,24,1,2,10,45,43,45,47,64,53,87,93,94,52,52,52,60,49,49,66,72,47,141,0,102,98,97,82,180,167,309,304,335,266,380,235,260,209,247,160,163,112,189,184,182,158,162,126,204,193,257,87,112,108,114,96,95,95,115,94,89,-366,-344,-813,-811,-809,-781,-728,-597,-6207,-416,-349,0,0,0,-223,-223,-223,0,0,0,0,0,0,0,0,0,0,0,0,0,0,0,0,0,0,0,0,0,0,0,0,0,0,0,0,0,0,0,0,0,0,0,0,0,0,0,0,0,0,0,0,0]} 1. e4 {[%emt 0:00:01]} c5 {[%emt 0:00:01]} 2. Nc3 {[%emt 0:00:01]} Nc6 {[%emt 0:00:01]} 3. Bb5 {[%emt 0:00:03]} Nd4 {[%emt 0:00:02]} 4. Nf3 {[%emt 0:00:01]} e6 {[%emt 0:00:08]} 5. O-O {[%emt 0:00:05]} a6 {[%emt 0:00:02]} 6. Bd3 {[%emt 0:00:03]} Nc6 {[%emt 0:00:01] B30: Sicilian: 2...Nc6 3 Bb5, lines without ...g6.} 7. a3 {[%emt 0:00:06]} Nf6 {[%emt 0:00:07]} 8. e5 {[%emt 0:00:29]} Ng4 {[%emt 0:00:01]} 9. Re1 {[%emt 0:00:00]} d6 {[%emt 0:00:03]} 10. exd6 {[%emt 0:00:03]} Bxd6 {[%emt 0:00:01] [#]} 11. h3 $146 {[%emt 0:00:06]} ({Predecessor:} 11. Be4 Bd7 12. d3 Nge5 13. Nxe5 Nxe5 14. Bxb7 Rb8 15. Ne4 Be7 16. Bxa6 Bc6 17. Bf4 {1-0 (34) Jones,G (2670)-Vaishali,R (2393) Chess.com INT 2020}) 11... Nf6 {[%emt 0:00:02]} 12. Ne4 {[%emt 0:00:00]} Be7 {[%emt 0:00:02]} 13. Nxf6+ {[%emt 0:00:04]} Bxf6 {[%emt 0:00:02]} 14. Be4 {[%emt 0:00:01]} Bd7 {[%emt 0:00:07]} 15. Rb1 {[%emt 0:00:02]} O-O {[%emt 0:00:03]} 16. b4 {[%emt 0:00:02]} cxb4 {[%emt 0:00:02]} 17. axb4 {[%emt 0:00:01]} b5 {[%emt 0:00:01]} 18. Bb2 {[%emt 0:00:21]} Rc8 {[%emt 0:00:06]} 19. Bxf6 {[%emt 0:00:04]} Qxf6 {[%emt 0:00:01]} 20. c3 {[%emt 0:00:00]} Rfd8 {[%emt 0:00:23]} 21. Ra1 {[%emt 0:00:00] Inhibits a5.} Nb8 {[%emt 0:00:01]} 22. Qe2 {[%emt 0:00:04]} Bc6 {[%emt 0:00:02] Inhibits Bb7.} 23. Nd4 {[%emt 0:00:07][%cal Bf3d4,Bd4b3,Bb3c5][%mdl 32]} Bd5 {[%emt 0:00:03]} 24. Qe3 {[%emt 0:00:09]} g6 {[%emt 0:00:02]} 25. Bxd5 {[%emt 0:00:06]} Rxd5 {[%emt 0:00:02]} 26. Nb3 {[%emt 0:00:00]} Nc6 {[%emt 0:00:20]} (26... Qd8 $14) 27. d4 {[%emt 0:00:06]} (27. Rxa6 $16 {aiming for Nc5.} Qd8 28. Rb1) 27... Ne7 {[%emt 0:00:21]} (27... e5 $1 $11) 28. Nc5 $16 {[%emt 0:00:05]} (28. Rxa6 Rg5 $14) 28... Rc6 {[%emt 0:00:16]} 29. Nxa6 {[%emt 0:00:32] Black must now prevent Nc5.} Nf5 {[%emt 0:00:21]} (29... Rg5 $16) 30. Qf3 $18 {[%emt 0:00:05] And now Nc5 would win.} Qg5 {[%emt 0:00:38]} (30... Kg7 $142 31. Nc5 Nd6 32. Qxf6+ Kxf6) 31. Nc5 {[%emt 0:00:04]} Nh4 {[%emt 0:00:03]} 32. Qg3 {[%emt 0:00:09]} (32. Ra8+ Kg7 33. Qe4 Rf5 $18) 32... Qe7 {[%emt 0:00:06]} (32... Qxg3 $142 33. fxg3 Nf5 34. Ra8+ Kg7) 33. Re5 {[%emt 0:00:32]} Nf5 {[%emt 0:00:11]} 34. Qf4 {[%emt 0:00:01]} Rd8 {[%emt 0:00:02]} 35. Qe4 {[%emt 0:00:08]} Rc7 {[%emt 0:00:03]} 36. d5 {[%emt 0:00:12]} (36. Qg4 $18) 36... Rxd5 {[%emt 0:00:06]} (36... Nd6 $16 37. Qd4 Nc4) 37. Rxd5 {[%emt 0:00:00]} exd5 {[%emt 0:00:01]} 38. Qxd5 {[%emt 0:00:01]} Kg7 {[%emt 0:00:06]} 39. Rd1 {[%emt 0:00:07]} Qf6 {[%emt 0:00:06]} (39... h5 $16 40. c4 bxc4) 40. Ne4 {[%emt 0:00:03][%csl LRb5,LRf6]} Qe7 {[%emt 0:00:02]} (40... Qc6 {was worth a try.} 41. Qxc6 Rxc6) 41. Qd3 $2 {[%emt 0:00:04]} (41. f3 $18 {has better winning chances.}) 41... Qe5 {[%emt 0:00:02]} 42. Nc5 {[%emt 0:00:01]} Re7 {[%emt 0:00:03]} 43. Qf3 {[%emt 0:00:04]} ({Don't do} 43. Qxb5 $6 Qxc3 44. Nd3 Re4 $11) 43... h5 {[%emt 0:00:02]} 44. g3 {[%emt 0:00:01]} Nd6 {[%emt 0:00:07][%cal Bf5d6,Bd6c4,Bc4b2,Bb2d1][%mdl 32]} 45. Qd3 {[%emt 0:00:05] White is more active.} Nc4 {[%emt 0:00:02] [#] Strongly threatening ...Nb2.} 46. h4 $2 {[%emt 0:00:04][%mdl 8192]} (46. Nd7 $16 {and life is bright.} Qe6 47. Kg2) 46... Nb2 $1 $19 {[%emt 0:00:01][%csl LRd1,LRd3]} 47. Qd4 {[%emt 0:00:06]} (47. f4 Qf6 48. Nd7 Rxd7 49. Qxd7 Nxd1 50. Qxd1 Qxc3 51. Kf1) 47... Nxd1 {[%emt 0:00:02]} 48. Qxd1 {[%emt 0:00:01]} Qxc3 {[%emt 0:00:05][%mdl 4096] Endgame KQR-KQN} 49. Qd6 {[%emt 0:00:01]} Qe5 {[%emt 0:00:04]} 50. Qb6 {[%emt 0:00:01]} Qe2 {[%emt 0:00:02]} (50... Qd5 $142 {( -> ...Re1+)} 51. Nd3 Qxd3) 51. Qd6 {[%emt 0:00:03]} Ra7 $2 {[%emt 0:00:01]} (51... Qe1+ $19 52. Kg2 Qe5) 52. Qd4+ $11 {[%emt 0:00:01]} Kh7 {[%emt 0:00:01] Threatens to win with ...Qe1+.} (52... f6 $5 53. Ne6+ $8 Qxe6 54. Qxa7+ Qf7 $11) 53. Ne6 $2 {[%emt 0:00:02]} Qe1+ $19 {[%emt 0:00:03]} ({Inferior is} 53... fxe6 54. Qxa7+ Kg8 55. Qe7 $11) 54. Kh2 {[%emt 0:00:03][%csl Ge6][%cal Rd4g7] [#]} Qxe6 $1 {[%emt 0:00:02]} 55. Qxa7 {[%emt 0:00:01] KQ-KQ. The position is equal.} Qc4 {[%emt 0:00:03]} 56. Qe7 {[%emt 0:00:02]} Kg7 {[%emt 0:00:01]} 57. Qe5+ {[%emt 0:00:00]} Kf8 {[%emt 0:00:02]} 58. Qd6+ {[%emt 0:00:01]} Ke8 {[%emt 0:00:01]} 59. Kg2 {[%emt 0:00:05]} Qe4+ {[%emt 0:00:00]} 60. Kh2 {[%emt 0:00:01]} Qc4 {[%emt 0:00:04]} 61. Qd2 {[%emt 0:00:01]} Ke7 {[%emt 0:00:01]} 62. Qe3+ {[%emt 0:00:03]} Kd6 {[%emt 0:00:01]} 63. Qd2+ {[%emt 0:00:01]} Ke5 {[%emt 0:00:02]} 64. Qe3+ {[%emt 0:00:03]} Kd5 {[%emt 0:00:01]} 65. Qe7 {[%emt 0:00:03]} Kd4 {[%emt 0:00:01]} 66. Qe3+ $1 {[%emt 0:00:02]} Kd5 67. Qe7 Kc6 {[%emt 0:00:06]} 68. Kg1 {[%emt 0:00:03]} Qd5 {[%emt 0:00:03]} 69. Kh2 {[%emt 0:00:01]} Qc4 {[%emt 0:00:05]} 70. Kg1 {[%emt 0:00:01]} Kb6 {[%emt 0:00:02]} 71. Qd6+ {[%emt 0:00:02]} Kb7 {[%emt 0:00:01]} 72. Kh2 {[%emt 0:00:01]} Kc8 {[%emt 0:00:01]} 73. Kg1 {[%emt 0:00:02]} Qc1+ {[%emt 0:00:01]} 74. Kh2 {[%emt 0:00:01]} Qc4 {[%emt 0:00:02]} 75. Kg1 {[%emt 0:00:00]} Kb7 {[%emt 0:00:04]} 76. Kh2 {[%emt 0:00:01]} Kc8 {[%emt 0:00:03] Weighted Error Value: White=0.57/Black=0.52} 1/2-1/2

[Event "Susha Chess Blitz 2022"]
[Site "Shusha"]
[Date "2022.09.24"]
[Round "4"]
[White "Durarbayli, Vasif"]
[Black "Maghsoodloo, Parham"]
[Result "0-1"]
[ECO "B94"]
[WhiteElo "2628"]
[BlackElo "2721"]
[Annotator "TA"]
[PlyCount "53"]
[EventDate "2022.09.24"]
[EventType "tourn"]
[EventCountry "AZE"]
[SourceTitle "playchess.com"]
[Source "ChessBase"]
[SourceQuality "1"]
[TimeControl "180+2"]

{[%evp 13,53,8,60,24,21,7,29,21,31,20,17,0,0,0,0,9,18,21,16,22,30,27,23,0,0,-12,-21,-14,-25,-16,-39,-27,0,-87,-83,-151,-170,-150,-129,-118,-4,-1816]} 1. e4 {[%emt 0:00:01]} c5 {[%emt 0:00:00]} 2. Nf3 {[%emt 0:00:01][%cal Bg1f3,Bf3d4,Bd4c6,Bc6b4][%mdl 32]} d6 {[%emt 0:00:01]} 3. d4 {[%emt 0:00:00]} cxd4 4. Nxd4 {[%emt 0:00:01]} Nf6 {[%emt 0:00:02]} 5. Nc3 {[%emt 0:00:01]} a6 {[%emt 0:00:00]} 6. Bg5 {[%emt 0:00:02]} Nbd7 {[%emt 0:00:02]} 7. f4 {[%emt 0:00:01] 7.Qe2 is a critical line.} b5 {[%emt 0:00:01]} (7... Qb6 $11) 8. Qe2 {[%emt 0:00:10] B94: Sicilian Najdorf: 6 Bg5 Nbd7.} (8. Bxf6 $5 Nxf6 9. e5 $14) 8... e5 {[%emt 0:00:01]} 9. Nc6 {[%emt 0:00:21]} Qc7 {[%emt 0:00:28]} 10. Nb4 {[%emt 0:00:01] White has an edge.} Bb7 {[%emt 0:00:03]} 11. O-O-O {[%emt 0:00:04] [#]} Be7 $146 {[%emt 0:00:10]} ({Predecessor:} 11... Rc8 12. g3 Qa5 13. fxe5 dxe5 14. Bxf6 Nxf6 15. Nbd5 b4 16. Qd3 Rd8 17. Nxf6+ gxf6 18. Qxd8+ Qxd8 19. Rxd8+ Kxd8 {0-1 (47) Kett,T (2272)-Bogner,S (2448) Dresden 2008}) 12. g4 {[%emt 0:00:30]} Qa5 {[%emt 0:00:54]} 13. a3 {[%emt 0:00:06]} Rc8 {[%emt 0:00:01][%cal Oc8c3] aiming for ...Rxc3!} 14. Bxf6 {[%emt 0:00:43]} Nxf6 {[%emt 0:00:03]} 15. Ncd5 {[%emt 0:00:12]} ({Wrong is} 15. g5 $2 {[#]} Rxc3 $1 16. gxf6 Rxa3 $1 17. bxa3 Qxa3+ 18. Kd2 Qxb4+ 19. c3 Qb2+ 20. Kd3 Qxe2+ 21. Kxe2 Bxf6 22. Rxd6 Ke7 $19) 15... Nxd5 {[%emt 0:00:04]} 16. exd5 {[%emt 0:00:02]} O-O {[%emt 0:00:02]} 17. Kb1 {[%emt 0:00:16]} Rfe8 {[%emt 0:00:28]} 18. fxe5 {[%emt 0:00:01]} dxe5 {[%emt 0:00:01]} 19. Qe4 {[%emt 0:00:01]} Qb6 {[%emt 0:00:09] Prevents Nc6.} 20. Bd3 {[%emt 0:00:27]} g6 {[%emt 0:00:01]} 21. Rhf1 {[%emt 0:00:03]} Bxb4 {[%emt 0:00:30]} 22. axb4 {[%emt 0:00:19]} Qd6 {[%emt 0:00:02]} 23. Be2 {[%emt 0:00:09]} (23. Qe1 $11 {remains equal.}) 23... Red8 $17 {[%emt 0:00:01][%cal Rb7d5]} 24. h4 {[%emt 0:00:11]} ({White should try} 24. Bf3) 24... Bxd5 {[%emt 0:00:03]} 25. Qe3 {[%emt 0:00:04]} Qxb4 {[%emt 0:00:03][%cal Oc8c2] Strongly threatening ...Rxc2!} 26. Qxe5 {[%emt 0:00:01]} Qc5 {[%emt 0:00:11]} (26... Be6 $17 {White must now prevent ...Re8.} 27. Rxd8+ Rxd8) 27. Qf4 $2 {[%mdl 8192] Weighted Error Value: White=0.15 (very precise) /Black=0.17 (very precise)} (27. c4 $11 Re8 28. Qxd5 Qxd5 29. Rxd5 Rxe2 30. c5 (30. cxb5 axb5 31. Rxb5 Re4 $15)) 0-1

[Event "Susha Chess Blitz 2022"]
[Site "Shusha"]
[Date "2022.09.24"]
[Round "5"]
[White "Mamedyarov, Shakhriyar"]
[Black "Wang, Hao"]
[Result "1/2-1/2"]
[ECO "D53"]
[WhiteElo "2757"]
[BlackElo "2722"]
[Annotator "TA"]
[PlyCount "137"]
[EventDate "2022.09.24"]
[EventType "tourn"]
[EventCountry "AZE"]
[SourceTitle "playchess.com"]
[Source "ChessBase"]
[SourceQuality "1"]
[TimeControl "180+2"]

{[%evp 12,137,21,12,30,18,19,0,2,14,14,19,28,14,22,0,8,4,8,0,0,0,0,0,0,-3,0,0,0,0,0,0,0,0,4,4,4,8,6,0,0,0,6,0,0,0,9,8,8,0,0,0,0,0,0,0,0,-11,0,0,0,0,0,0,0,0,0,0,0,0,0,2,8,0,8,0,0,0,0,0,0,0,0,0,0,-34,-41,-29941,-12848,-5414,-97,-29954,-83,-83,-83,-83,-83,-83,-83,-83,-83,-348,-322,-316,-316,-309,-298,-309,-309,-293,-293,-309,-309,-309,-309,-309,-316,-316,-309,-316,0,-311,0,0,0,0,0,0]} 1. d4 {[%emt 0:00:00]} Nf6 {[%emt 0:00:02]} 2. c4 {[%emt 0:00:01]} e6 {[%emt 0:00:00]} 3. Nc3 {[%emt 0:00:01]} d5 {[%emt 0:00:01]} 4. Bg5 {[%emt 0:00:01]} Be7 {[%emt 0:00:01]} 5. e3 {[%emt 0:00:02]} h6 {[%emt 0:00:02]} 6. Bh4 {[%emt 0:00:01]} O-O {[%emt 0:00:03]} 7. Qc2 {[%emt 0:00:01]} Nbd7 {[%emt 0:00:03] D53: Queen's Gambit Declined: 4 Bg5 Be7: Early deviations.} 8. Rd1 {[%emt 0:00:01]} c5 {[%emt 0:00:05]} 9. dxc5 {[%emt 0:00:04]} Nxc5 {[%emt 0:00:05]} 10. Nf3 {[%emt 0:00:11]} Qa5 {[%emt 0:00:06]} 11. cxd5 {[%emt 0:00:08]} exd5 {[%emt 0:00:28]} 12. Be2 {[%emt 0:00:04]} Nce4 {[%emt 0:00:15]} 13. O-O {[%emt 0:00:02][%cal Oc3d5] [#] Black must now prevent Nxd5!} Nxc3 {[%emt 0:00:18]} 14. bxc3 {[%emt 0:00:01]} Bd7 {[%emt 0:00:02] [#]} 15. Qb2 $146 {[%emt 0:00:31]} ({Predecessor:} 15. Rb1 b6 16. Ne5 Qa4 17. Qxa4 Bxa4 18. Ng4 Rac8 19. Bxf6 Bxf6 20. Nxf6+ gxf6 21. Rfc1 {½-½ (32) Kunin,V (2586)-Cvitan,O (2491) Zuerich 2016}) 15... Qb6 {[%emt 0:00:07]} 16. Rb1 {[%emt 0:00:10]} Qxb2 {[%emt 0:00:04]} 17. Rxb2 {[%emt 0:00:01]} b6 {[%emt 0:00:02]} 18. Ne5 {[%emt 0:00:07]} Ba4 {[%emt 0:00:09]} 19. Ng4 {[%emt 0:00:28]} Rac8 {[%emt 0:00:20]} 20. Bxf6 {[%emt 0:00:02]} Bxf6 {[%emt 0:00:02]} 21. Nxf6+ {[%emt 0:00:01]} gxf6 {[%emt 0:00:01]} 22. Rb4 {[%emt 0:00:07]} Bc2 {[%emt 0:00:04]} 23. Rg4+ {[%emt 0:00:31]} Kh8 {[%emt 0:00:18]} 24. c4 {[%emt 0:00:04]} Rfd8 {[%emt 0:00:04]} 25. h3 {[%emt 0:00:09]} Bg6 {[%emt 0:00:12] And now ...Bh5 would win.} 26. Rf4 {[%emt 0:00:05]} Kg7 {[%emt 0:00:01]} 27. Rc1 {[%emt 0:00:27]} dxc4 {[%emt 0:00:11]} 28. Rcxc4 {[%emt 0:00:02]} ({Don't play} 28. Rfxc4 Rxc4 29. Rxc4 Rd2 $17) 28... Rxc4 {[%emt 0:00:02]} 29. Bxc4 $11 {[%emt 0:00:01][%mdl 4096] Endgame KRB-KRB} Rd2 {[%emt 0:00:09]} 30. g4 {[%emt 0:00:12]} Rb2 {[%emt 0:00:08]} 31. a4 {[%emt 0:00:08]} Rb4 {[%emt 0:00:09]} 32. Bb5 {[%emt 0:00:03]} Rxf4 {[%emt 0:00:04]} 33. exf4 {[%emt 0:00:01] KB-KB} Bc2 {[%emt 0:00:01]} 34. f5 {[%emt 0:00:09]} a6 {[%emt 0:00:09]} 35. Bxa6 {[%emt 0:00:01]} Bxa4 {[%emt 0:00:01]} 36. Bb7 {[%emt 0:00:04]} Bd7 {[%emt 0:00:02]} 37. Kg2 {[%emt 0:00:04]} b5 {[%emt 0:00:03]} 38. Bd5 {[%emt 0:00:01]} b4 {[%emt 0:00:01]} 39. Bb3 {[%emt 0:00:01]} Bb5 {[%emt 0:00:07]} 40. Kg3 {[%emt 0:00:02]} Be2 {[%emt 0:00:02]} 41. Kf4 {[%emt 0:00:04]} Bf1 {[%emt 0:00:02]} 42. Kg3 {[%emt 0:00:02]} Be2 {[%emt 0:00:01]} 43. f4 {[%emt 0:00:01]} Bd3 {[%emt 0:00:03]} 44. Kf2 {[%emt 0:00:03]} Bb5 {[%emt 0:00:03]} 45. Ke3 {[%emt 0:00:02]} Bf1 {[%emt 0:00:02]} 46. h4 {[%emt 0:00:01]} Bh3 {[%emt 0:00:01]} 47. Kf3 {[%emt 0:00:01]} h5 {[%emt 0:00:04]} 48. gxh5 {[%emt 0:00:08]} Bxf5 {[%emt 0:00:01]} 49. Ke3 $2 {[%emt 0:00:00][%mdl 8192]} (49. h6+ $15 Kxh6 50. Bxf7) 49... Be6 {[%emt 0:00:05]} 50. Bc2 {[%emt 0:00:03]} Kh6 $2 {[%emt 0:00:02]} (50... b3 $19 51. Bd3 b2) 51. Kd4 $2 {[%emt 0:00:03][%mdl 8192] [#]} (51. f5 $17) 51... Kxh5 $2 {[%emt 0:00:02]} (51... b3 $1 {mates} 52. Bd3 f5 53. Ke5 Kxh5 54. Bf1 Kxh4 55. Be2 Kg3 56. Bd1 b2 57. Bc2 Kf3 58. Bb1 Ke3 59. Bc2 Bc4 60. Bxf5 Bd3 61. Bxd3 Kxd3 62. Kd6 b1=Q 63. Ke7 Ke4 64. Kd6 Qb6+ 65. Ke7 Kxf4 66. Ke8 Kf5 67. Kd7 Qc5 68. Ke8 Ke6 69. Kd8 f6 70. Ke8 Qe7#) 52. f5 $17 {[%emt 0:00:04]} Ba2 {[%emt 0:00:01] aiming for ...b3.} 53. Be4 {[%emt 0:00:01]} Kxh4 {[%emt 0:00:05]} 54. Kc5 {[%emt 0:00:01]} b3 {[%emt 0:00:01]} 55. Bd5 {[%emt 0:00:03]} Kg5 {[%emt 0:00:02]} 56. Bxf7 $2 {[%emt 0:00:01][%mdl 8192]} (56. Kd4 $17 {only move.}) 56... Kxf5 $19 {[%emt 0:00:01]} 57. Kb4 {[%emt 0:00:02]} Ke4 {[%emt 0:00:02]} 58. Ka3 {[%emt 0:00:01]} f5 {[%emt 0:00:02]} 59. Bg6 {[%emt 0:00:01]} Ke5 {[%emt 0:00:01]} 60. Bxf5 {[%emt 0:00:01]} Kxf5 {[%emt 0:00:02]} 61. Kb2 {[%emt 0:00:01]} Ke4 {[%emt 0:00:01][%cal Bf5e4,Be4d3,Bd3c4,Bc4b4][%mdl 32]} 62. Ka1 {[%emt 0:00:00]} Kd3 {[%emt 0:00:01]} 63. Kb2 {[%emt 0:00:01]} Kc4 {[%emt 0:00:01]} 64. Ka1 {[%emt 0:00:01]} Kb4 {[%emt 0:00:02]} 65. Kb2 {[%emt 0:00:00]} Kc4 {[%emt 0:00:01]} 66. Ka1 $1 {[%emt 0:00:01][%cal Bb2a1,Ba1b1,Bb1c1][%mdl 32]} Bb1 $2 {[%emt 0:00:06]} 67. Kxb1 $11 {[%emt 0:00:01] The position is equal.} Kc3 {[%emt 0:00:00] ( -> ...b2)} 68. Kc1 {[%emt 0:00:01]} b2+ {[%emt 0:00:01]} 69. Kb1 {[%emt 0:00:00] Weighted Error Value: White=0.40/Black=0.30} 1/2-1/2

[Event "Susha Chess Blitz 2022"]
[Site "Shusha"]
[Date "2022.09.24"]
[Round "5"]
[White "Kasimdzhanov, Rustam"]
[Black "Maghsoodloo, Parham"]
[Result "0-1"]
[ECO "B40"]
[WhiteElo "2670"]
[BlackElo "2721"]
[Annotator "TA"]
[PlyCount "152"]
[EventDate "2022.09.24"]
[EventType "tourn"]
[EventCountry "AZE"]
[SourceTitle "playchess.com"]
[Source "ChessBase"]
[SourceQuality "1"]
[TimeControl "180+2"]

{[%evp 9,152,0,32,12,10,20,46,32,60,9,18,17,92,93,95,96,139,132,137,0,0,-20,0,0,0,0,0,0,0,0,0,0,0,0,0,-11,0,0,0,0,3,-22,-28,-65,-60,-106,-113,-253,-234,-237,-237,-325,-238,-396,-341,-422,-414,-383,-156,-260,-127,-171,-144,-143,-140,-147,-135,-134,-92,-109,-96,-133,-105,-127,-78,-244,-195,-193,-56,-56,-56,-213,-213,-213,-213,-213,-213,-213,-213,-213,-213,-214,-213,-213,-213,-213,-213,-213,-213,-213,-213,-213,-213,-213,-213,-213,-213,-213,-213,-213,-213,-213,-213,-213,-213,-213,-213,-213,-213,-29957,-29960,-29959,-29960,-29970,-29972,-29971,-29958,-29970,-29972,-29970,-10318,-29973,-29974,-29974,-29975,-29975,-29976,-29976,-29977,-29978,-29979,-29979,-29980,-29978,-29976]} 1. e4 {[%emt 0:00:00] Atlas,V} c5 {[%emt 0:00:02]} 2. Nf3 {[%emt 0:00:01]} e6 {[%emt 0:00:01]} 3. c3 {[%emt 0:00:01]} Nf6 {[%emt 0:00:08]} 4. e5 {[%emt 0:00:01]} Nd5 {[%emt 0:00:01]} 5. Bc4 {[%emt 0:00:00]} b6 {[%emt 0:00:12]} 6. Bxd5 {[%emt 0:00:24] B22: Sicilian: 2 c3.} exd5 {[%emt 0:00:02]} 7. O-O {[%emt 0:00:06]} Na6 {[%emt 0:00:09]} 8. d4 {[%emt 0:00:03] [#] White is slightly better.} Be7 $146 {[%emt 0:00:06]} ({Predecessor:} 8... Nc7 9. Bg5 Be7 10. Bxe7 Qxe7 11. Na3 O-O 12. Nc2 d6 13. Ne3 dxe5 14. Nxe5 Qd6 {0-1 (35) Egin,V (2451)-Sadvakasov,D (2568) Kolkata 2001 CBM 085 [Atlas,V]}) 9. Re1 {[%emt 0:00:02]} (9. dxc5 $14 Nxc5 10. b4 (10. Qxd5 Bb7 $11)) 9... Nc7 {[%emt 0:00:03]} 10. Nbd2 {[%emt 0:00:06]} d6 {[%emt 0:00:10]} (10... O-O $11 {keeps the balance.}) 11. exd6 $16 {[%emt 0:00:09]} Qxd6 {[%emt 0:00:03]} 12. dxc5 {[%emt 0:00:01]} bxc5 {[%emt 0:00:02] [#]} 13. Nc4 $1 {[%emt 0:00:02][%mdl 512]} Qa6 {[%emt 0:00:18]} (13... Qd8 14. Nce5) 14. Nce5 {[%emt 0:01:14] Pair of Knights!} ({Not} 14. Qe2 Ne6 15. Ne3 Qxe2 16. Rxe2 Nf4 $11) (14. Bg5 $16 Be6 15. Bxe7 Kxe7 16. Ne3) 14... O-O $11 {[%emt 0:00:28]} 15. Ng6 {[%emt 0:00:34]} hxg6 {[%emt 0:00:15]} 16. Rxe7 {[%emt 0:00:02]} Qd6 {[%emt 0:00:01]} 17. Re1 {[%emt 0:00:07]} Bg4 {[%emt 0:00:11]} 18. h3 {[%emt 0:00:03]} Bxf3 {[%emt 0:00:02]} 19. Qxf3 {[%emt 0:00:01]} Ne6 {[%emt 0:00:01] Inhibits Bf4.} 20. Bd2 {[%emt 0:00:13]} Rab8 {[%emt 0:00:23]} 21. b3 {[%emt 0:00:01]} a5 {[%emt 0:00:04]} 22. Rad1 {[%emt 0:00:08]} a4 {[%emt 0:00:01]} 23. b4 {[%emt 0:00:02]} Rfd8 {[%emt 0:00:06]} 24. Qd3 {[%emt 0:00:06]} Qc6 {[%emt 0:00:04]} 25. bxc5 {[%emt 0:00:06]} Nxc5 {[%emt 0:00:07]} 26. Qd4 {[%emt 0:00:02]} Ne6 {[%emt 0:00:06] Inhibits Bg5.} 27. Qd3 {[%emt 0:00:07]} (27. Qh4 $15 {feels stronger.}) 27... Rb2 $17 {[%emt 0:00:01]} 28. Bc1 {[%emt 0:00:03]} (28. Ra1 $17) 28... Rxa2 $19 {[%emt 0:00:02]} 29. Qb1 {[%emt 0:00:02]} Qc4 {[%emt 0:00:01]} 30. Be3 {[%emt 0:00:09]} Qb3 {[%emt 0:00:11]} 31. Qd3 $2 {[%emt 0:00:03]} (31. Qxb3 {keeps fighting.} axb3 32. Rb1) 31... Rc2 {[%emt 0:00:02]} 32. Ra1 {[%emt 0:00:02]} Rxc3 {[%emt 0:00:03]} 33. Qa6 {[%emt 0:00:02]} a3 {[%emt 0:00:06]} (33... d4 $19 34. Bc1 Nc5) 34. Bd2 {[%emt 0:00:02]} (34. Qa5 $17 {was worth a try.} Rdc8 35. Bd2) 34... Rd3 {[%emt 0:00:04]} (34... Rc2 $1 $19 {[%cal Rc2d2] and Black stays clearly on top.} 35. Rxa3 Qb2 36. Rxe6 fxe6 37. Qxe6+ Kh7) 35. Bc1 {[%emt 0:00:03]} Qc4 {[%emt 0:00:13]} 36. Rxa3 {[%emt 0:00:02]} Rxa3 {[%emt 0:00:02]} 37. Qxa3 {[%emt 0:00:01]} d4 {[%emt 0:00:03]} 38. Bd2 {[%emt 0:00:01]} d3 {[%emt 0:00:02]} 39. Rc1 {[%emt 0:00:01]} Qd5 {[%emt 0:00:01] Black is more active.} 40. Re1 {[%emt 0:00:02]} Ra8 {[%emt 0:00:03]} 41. Qc3 {[%emt 0:00:01]} Ra2 {[%emt 0:00:05]} ({Black should try} 41... Rb8 42. Rc1 g5) 42. Kh2 $2 {[%emt 0:00:02]} (42. Re3 $17) 42... Rc2 {[%emt 0:00:02]} 43. Qb4 {[%emt 0:00:01]} Qd4 {[%emt 0:00:14]} (43... g5 $1 $19 {Strongly threatening ...Kh7.} 44. Kg1 Nd4) 44. Qxd4 $15 {[%emt 0:00:02]} Nxd4 {[%emt 0:00:01][%mdl 4096] Endgame KRB-KRN} 45. Rd1 {[%emt 0:00:00] [#] Black keeps a firm grip on the game.} (45. Re8+ $15 Kh7 46. Rd8) 45... Nb3 $1 $19 {[%emt 0:00:06]} 46. Be3 {[%emt 0:00:09]} d2 {[%emt 0:00:01]} 47. Kg3 {[%emt 0:00:01] [#]} Rc1 $1 {[%emt 0:00:01]} 48. Rxd2 {[%emt 0:00:02]} Nxd2 {[%emt 0:00:01]} 49. Bxd2 {[%emt 0:00:00] KR-KB} Rc2 {[%emt 0:00:01]} 50. Be3 {[%emt 0:00:01]} f6 {[%emt 0:00:01]} 51. h4 {[%emt 0:00:02]} Kf7 {[%emt 0:00:01]} 52. Kf3 {[%emt 0:00:01]} Ke6 {[%emt 0:00:00]} 53. g3 {[%emt 0:00:00]} Kd5 {[%emt 0:00:01]} 54. Ba7 {[%emt 0:00:02]} Kc4 {[%emt 0:00:01]} 55. Be3 {[%emt 0:00:02]} Kd3 {[%emt 0:00:01]} 56. Bb6 {[%emt 0:00:01]} Kd2 {[%emt 0:00:02]} 57. Be3+ {[%emt 0:00:01]} Ke1 {[%emt 0:00:01]} 58. Kg2 {[%emt 0:00:03]} Ke2 {[%emt 0:00:02]} 59. Bb6 {[%emt 0:00:02]} Rc3 {[%emt 0:00:04]} 60. Bd4 {[%emt 0:00:01]} Rf3 {[%emt 0:00:01]} 61. Ba7 {[%emt 0:00:01]} Rf5 {[%emt 0:00:02]} 62. Be3 {[%emt 0:00:02]} Re5 {[%emt 0:00:03]} 63. Bd4 {[%emt 0:00:01]} Rb5 {[%emt 0:00:02] ( -> ...g5)} 64. Ba7 $2 {[%emt 0:00:02]} (64. Be3 $19) 64... g5 {[%emt 0:00:01]} 65. hxg5 {[%emt 0:00:02]} Rxg5 {[%emt 0:00:01]} 66. Be3 {[%emt 0:00:02]} Rf5 {[%emt 0:00:02]} 67. Bd4 {[%emt 0:00:04]} Rd5 {[%emt 0:00:10]} 68. Be3 {[%emt 0:00:01]} Rd3 {[%emt 0:00:04]} 69. Bc5 {[%emt 0:00:02]} f5 {[%emt 0:00:01]} (69... Rf3 $142 70. Bb6 f5 71. Bc5 g6 72. Kh3 g5 73. Kg2 f4 74. Bd4 Rd3 75. Bc5 Rd1 76. Ba7 Rf1 77. gxf4 gxf4 78. Bd4 Rd1 79. Bc5 Rd5 80. Be7 Ra5 81. Kg1 Rd5 82. Kg2 Rd1 83. Bc5 Rd5 84. Be7) 70. Be7 {[%emt 0:00:08]} Rf3 {[%emt 0:00:01] Black mates.} 71. Bc5 {[%emt 0:00:00]} g5 {[%emt 0:00:01][%cal Bg7g5,Bg5f4,Bf4f3][%mdl 32]} 72. Bd4 {[%emt 0:00:03]} Rd3 {[%emt 0:00:03]} 73. Bc5 {[%emt 0:00:05]} f4 {[%emt 0:00:02]} 74. gxf4 {[%emt 0:00:01]} gxf4 {[%emt 0:00:01]} 75. Bb6 {[%emt 0:00:01]} f3+ {[%emt 0:00:01]} 76. Kg3 {[%emt 0:00:02]} Rd1 {[%emt 0:00:01] Weighted Error Value: White=0.31/Black=0.26 (precise)} 0-1